[Event "44th Chess Olympiad Women 2022"]
[Site "Chennai"]
[Date "2022.07.31"]
[Round "3.26"]
[White "Al Maamari, Wafia Darwish"]
[Black "Mona, Khaled"]
[Result "0-1"]
[WhiteElo "1841"]
[BlackElo "2127"]
[Annotator "NA COMBH"]
[PlyCount "92"]
[EventDate "2022.??.??"]
[TimeControl "60"]

1. e4 {[%emt 0:00:04]} e5 {[%emt 0:00:15]} 2. Nf3 {[%emt 0:00:08]} Nc6 {
[%emt 0:00:04]} 3. Bb5 {[%emt 0:00:05]} Nge7 {[%emt 0:00:08]} 4. Nc3 {[%emt 0:
00:00]} d6 {[%emt 0:00:06]} 5. d4 {[%emt 0:05:09]} Bd7 {[%emt 0:00:06]} 6. d5 {
[%emt 0:07:01]} Nb8 {[%emt 0:00:07]} 7. Bg5 {[%emt 0:03:22]} h6 {[%emt 0:00:41]
} 8. Bxd7+ {[%emt 0:01:48]} Nxd7 {[%emt 0:00:07]} 9. Bxe7 {[%emt 0:00:29]} Bxe7
{[%emt 0:00:14]} 10. O-O {[%emt 0:00:42]} O-O {[%emt 0:01:01]} 11. Ne2 {
[%emt 0:02:26]} g6 {[%emt 0:00:23]} 12. c4 {[%emt 0:02:27]} a5 {[%emt 0:01:58]}
13. Rc1 {[%emt 0:07:39]} Nc5 {[%emt 0:02:44]} 14. Qc2 {[%emt 0:06:18]} f5 {
[%emt 0:06:38]} 15. exf5 {[%emt 0:02:25]} gxf5 {[%emt 0:00:07]} 16. Ng3 {
[%emt 0:01:29]} Qd7 {[%emt 0:00:19]} 17. b3 {[%emt 0:09:46]} Rf7 {[%emt 0:00:
00]} 18. a3 {[%emt 0:05:49]} a4 {[%emt 0:01:59]} 19. b4 {[%emt 0:02:42]} Nb3 {
[%emt 0:00:06]} 20. Rcd1 {[%emt 0:00:19]} Kh8 {[%emt 0:04:54]} 21. c5 {[%emt 0:
00:00]} Rg8 {[%emt 0:00:26]} 22. c6 {[%emt 0:00:48]} bxc6 {[%emt 0:00:12]} 23.
Qxc6 {[%emt 0:01:31]} Qxc6 {[%emt 0:01:02]} 24. dxc6 {[%emt 0:00:23]} Rb8 {
[%emt 0:00:15]} 25. Rd5 {[%emt 0:05:02]} Kg7 {[%emt 0:01:53]} 26. Rfd1 {
[%emt 0:02:09]} Kf6 {[%emt 0:00:30]} 27. Ne2 {[%emt 0:02:24]} Rb6 {[%emt 0:00:
00]} 28. b5 {[%emt 0:02:21]} Rf8 {[%emt 0:00:25]} 29. Nc3 {[%emt 0:00:28]} Ra8
{[%emt 0:07:47]} 30. Rxd6+ {[%emt 0:02:05]} Bxd6 {[%emt 0:07:15]} 31. Rxd6+ {
[%emt 0:04:23]} cxd6 {[%emt 0:00:21]} 32. Nd5+ {[%emt 0:00:04]} Ke6 {[%emt 0:
00:00]} 33. Nxb6 {[%emt 0:00:33]} Ra7 {[%emt 0:00:37]} 34. h4 {[%emt 0:04:13]}
Na5 {[%emt 0:11:36]} 35. Nc8 {[%emt 0:01:55]} Rc7 {[%emt 0:03:30]} 36. Nb6 {
[%emt 0:00:11]} Nxc6 {[%emt 0:00:34]} 37. bxc6 {[%emt 0:01:00]} Rxc6 {[%emt 0:
00:00]} 38. Nxa4 {[%emt 0:00:04]} Rc1+ {[%emt 0:00:38]} 39. Kh2 {[%emt 0:00:13]
} d5 {[%emt 0:03:46]} 40. Nb6 {[%emt 0:01:27]} Rb1 {[%emt 0:06:39]} 41. Nxd5 {
[%emt 0:39:42]} Kxd5 {[%emt 0:30:18]} 42. h5 {[%emt 0:00:12]} Rf1 {[%emt 0:00:
00]} 43. Nh4 {[%emt 0:02:07]} Rxf2 {[%emt 0:00:53]} 44. Kg1 {[%emt 0:00:16]}
Rf4 {[%emt 0:00:41]} 45. g3 {[%emt 0:00:49]} Rxh4 {[%emt 0:00:44]} 46. gxh4 {
[%emt 0:00:05]} Kc4 {[%emt 0:00:40]} 0-1

[Event "44th Chess Olympiad Women 2022"]
[Site "Chennai"]
[Date "2022.07.31"]
[Round "3.26"]
[White "Mariam, Essa"]
[Black "Elansary, Eman"]
[Result "1-0"]
[WhiteElo "1591"]
[BlackElo "1936"]
[Annotator "NA RC"]
[PlyCount "81"]
[EventDate "2022.??.??"]
[TimeControl "60"]

1. e4 {[%emt 0:00:03]} Nf6 {[%emt 0:00:13]} 2. e5 {[%emt 0:00:05]} Nd5 {
[%emt 0:00:05]} 3. d4 {[%emt 0:00:06]} d6 {[%emt 0:00:07]} 4. c4 {[%emt 0:00:
00]} Nb6 {[%emt 0:00:11]} 5. exd6 {[%emt 0:00:05]} cxd6 {[%emt 0:00:13]} 6. Nc3
{[%emt 0:00:18]} g6 {[%emt 0:00:16]} 7. Be3 {[%emt 0:00:05]} Bg7 {[%emt 0:00:
00]} 8. Rc1 {[%emt 0:00:05]} O-O {[%emt 0:01:49]} 9. b3 {[%emt 0:00:32]} N6d7 {
[%emt 0:09:59]} 10. Be2 {[%emt 0:04:03]} a5 {[%emt 0:06:26]} 11. Nf3 {[%emt 0:
00:00]} Nf6 {[%emt 0:02:09]} 12. h3 {[%emt 0:02:32]} Bd7 {[%emt 0:02:53]} 13.
O-O {[%emt 0:05:12]} Na6 {[%emt 0:07:14]} 14. Qd2 {[%emt 0:01:48]} Re8 {
[%emt 0:06:35]} 15. Rfd1 {[%emt 0:07:17]} Nc7 {[%emt 0:18:39]} 16. d5 {[%emt 0:
00:00]} Na6 {[%emt 0:01:13]} 17. Bh6 {[%emt 0:04:55]} a4 {[%emt 0:04:14]} 18.
Bxg7 {[%emt 0:01:09]} Kxg7 {[%emt 0:00:06]} 19. b4 {[%emt 0:10:55]} Nxb4 {
[%emt 0:01:38]} 20. Rb1 {[%emt 0:00:05]} Na6 {[%emt 0:01:26]} 21. Rxb7 {
[%emt 0:01:19]} Nc5 {[%emt 0:00:05]} 22. Rb4 {[%emt 0:02:53]} Qa5 {[%emt 0:00:
00]} 23. a3 {[%emt 0:01:48]} Rab8 {[%emt 0:03:00]} 24. Qb2 {[%emt 0:04:53]} Nb3
{[%emt 0:01:49]} 25. Nb5 {[%emt 0:01:36]} Bxb5 {[%emt 0:05:16]} 26. cxb5 {
[%emt 0:00:10]} Kg8 {[%emt 0:00:11]} 27. Nd4 {[%emt 0:00:35]} Nc5 {[%emt 0:00:
00]} 28. Nc6 {[%emt 0:00:49]} Qb6 {[%emt 0:00:08]} 29. Nxb8 {[%emt 0:01:07]}
Rxb8 {[%emt 0:00:02]} 30. Qd4 {[%emt 0:02:51]} Ne8 {[%emt 0:02:37]} 31. Qe3 {
[%emt 0:03:09]} Rb7 {[%emt 0:04:02]} 32. Qh6 {[%emt 0:01:07]} Rc7 {[%emt 0:00:
00]} 33. Rdd4 {[%emt 0:04:28]} Nf6 {[%emt 0:03:50]} 34. Rh4 {[%emt 0:00:13]}
Qa5 {[%emt 0:04:31]} 35. g4 {[%emt 0:02:08]} e5 {[%emt 0:01:29]} 36. g5 {
[%emt 0:01:35]} Nxd5 {[%emt 0:02:00]} 37. Qxh7+ {[%emt 0:00:11]} Kf8 {[%emt 0:
00:00]} 38. Qh8+ {[%emt 0:01:29]} Ke7 {[%emt 0:00:02]} 39. Bc4 {[%emt 0:02:47]}
Nb6 {[%emt 0:01:34]} 40. Qf6+ {[%emt 0:00:25]} Kd7 {[%emt 0:00:23]} 41. Rh8 {
[%emt 0:30:05]} 1-0

[Event "44th Chess Olympiad Women 2022"]
[Site "Chennai"]
[Date "2022.07.31"]
[Round "3.26"]
[White "Wafa, Shrook"]
[Black "Al Mansouri, Moza"]
[Result "1-0"]
[WhiteElo "2141"]
[BlackElo "1606"]
[Annotator "NA RC"]
[PlyCount "57"]
[EventDate "2022.??.??"]
[TimeControl "60"]

1. e4 {[%emt 0:00:04]} c5 {[%emt 0:00:05]} 2. Nf3 {[%emt 0:00:10]} d6 {[%emt 0:
00:00]} 3. Nc3 {[%emt 0:00:22]} Nf6 {[%emt 0:00:22]} 4. Bc4 {[%emt 0:00:22]} e6
{[%emt 0:02:54]} 5. O-O {[%emt 0:00:40]} Be7 {[%emt 0:01:04]} 6. d4 {[%emt 0:
00:00]} cxd4 {[%emt 0:00:45]} 7. Nxd4 {[%emt 0:00:46]} O-O {[%emt 0:01:01]} 8.
Bg5 {[%emt 0:02:07]} Nc6 {[%emt 0:03:15]} 9. Qd2 {[%emt 0:05:55]} d5 {[%emt 0:
00:00]} 10. exd5 {[%emt 0:02:02]} Nxd5 {[%emt 0:00:23]} 11. Bxe7 {[%emt 0:00:
00]} Ndxe7 {[%emt 0:02:13]} 12. Rad1 {[%emt 0:00:29]} Ne5 {[%emt 0:05:43]} 13.
Be2 {[%emt 0:01:18]} N7g6 {[%emt 0:03:15]} 14. Qe3 {[%emt 0:02:39]} Qe7 {
[%emt 0:04:50]} 15. f4 {[%emt 0:02:08]} Nd7 {[%emt 0:04:30]} 16. Bf3 {[%emt 0:
00:00]} e5 {[%emt 0:02:03]} 17. fxe5 {[%emt 0:01:09]} Ndxe5 {[%emt 0:02:09]}
18. Be4 {[%emt 0:05:05]} Bg4 {[%emt 0:06:31]} 19. Rde1 {[%emt 0:02:41]} Nc4 {
[%emt 0:02:36]} 20. Qf2 {[%emt 0:03:50]} Qb4 {[%emt 0:05:47]} 21. Nd5 {[%emt 0:
00:00]} Qd2 {[%emt 0:02:44]} 22. h3 {[%emt 0:08:18]} Qxf2+ {[%emt 0:02:34]} 23.
Rxf2 {[%emt 0:00:13]} Bd7 {[%emt 0:02:01]} 24. b3 {[%emt 0:02:59]} Nd6 {
[%emt 0:00:53]} 25. Bxg6 {[%emt 0:02:25]} hxg6 {[%emt 0:02:17]} 26. Re7 {
[%emt 0:03:50]} Rad8 {[%emt 0:01:26]} 27. c4 {[%emt 0:00:27]} Nc8 {[%emt 0:00:
00]} 28. Re4 {[%emt 0:02:31]} Nd6 {[%emt 0:01:03]} 29. Ne7+ {[%emt 0:00:16]}
1-0

[Event "44th Chess Olympiad Women 2022"]
[Site "Chennai"]
[Date "2022.07.31"]
[Round "3.26"]
[White "Wafa, Shahenda"]
[Black "Rouda Essa, Alserkal"]
[Result "0-1"]
[WhiteElo "2115"]
[BlackElo "1874"]
[Annotator "NA RC"]
[PlyCount "92"]
[EventDate "2022.??.??"]
[TimeControl "60"]

1. e4 {[%emt 0:00:04]} e5 {[%emt 0:00:04]} 2. Nf3 {[%emt 0:00:06]} Nc6 {
[%emt 0:00:06]} 3. Bb5 {[%emt 0:00:09]} a6 {[%emt 0:00:05]} 4. Ba4 {[%emt 0:00:
00]} Nf6 {[%emt 0:00:05]} 5. O-O {[%emt 0:00:12]} Be7 {[%emt 0:00:05]} 6. Re1 {
[%emt 0:00:10]} b5 {[%emt 0:00:04]} 7. Bb3 {[%emt 0:00:11]} O-O {[%emt 0:00:09]
} 8. a4 {[%emt 0:00:06]} Bb7 {[%emt 0:00:08]} 9. d3 {[%emt 0:00:15]} d6 {
[%emt 0:00:45]} 10. Nbd2 {[%emt 0:00:36]} Na5 {[%emt 0:09:04]} 11. Ba2 {
[%emt 0:00:46]} c5 {[%emt 0:00:48]} 12. Nf1 {[%emt 0:01:07]} Qc7 {[%emt 0:00:
00]} 13. Bd2 {[%emt 0:04:06]} Nc6 {[%emt 0:01:30]} 14. c3 {[%emt 0:02:41]} Rad8
{[%emt 0:07:55]} 15. Bg5 {[%emt 0:17:05]} Nd7 {[%emt 0:10:10]} 16. axb5 {
[%emt 0:15:40]} axb5 {[%emt 0:00:44]} 17. Ne3 {[%emt 0:00:28]} Nb6 {[%emt 0:00:
00]} 18. Nf5 {[%emt 0:05:18]} Bc8 {[%emt 0:12:37]} 19. Nxe7+ {[%emt 0:06:06]}
Nxe7 {[%emt 0:00:10]} 20. Bb3 {[%emt 0:09:21]} Kh8 {[%emt 0:05:15]} 21. Nh4 {
[%emt 0:03:53]} f6 {[%emt 0:04:35]} 22. Be3 {[%emt 0:05:03]} d5 {[%emt 0:00:27]
} 23. exd5 {[%emt 0:04:38]} Nbxd5 {[%emt 0:02:26]} 24. Qh5 {[%emt 0:07:42]} Be6
{[%emt 0:05:08]} 25. Bc2 {[%emt 0:00:18]} Bf7 {[%emt 0:04:34]} 26. Qe2 {
[%emt 0:00:42]} Ng6 {[%emt 0:03:09]} 27. Nxg6+ {[%emt 0:03:19]} Bxg6 {[%emt 0:
00:00]} 28. Red1 {[%emt 0:03:37]} f5 {[%emt 0:10:58]} 29. Bg5 {[%emt 0:01:12]}
Rde8 {[%emt 0:00:27]} 30. d4 {[%emt 0:04:28]} exd4 {[%emt 0:02:39]} 31. Qxb5 {
[%emt 0:00:11]} Rb8 {[%emt 0:02:56]} 32. Qc4 {[%emt 0:02:04]} Bf7 {[%emt 0:00:
00]} 33. Qd3 {[%emt 0:00:35]} Bg6 {[%emt 0:01:12]} 34. Qf3 {[%emt 0:01:40]} Qf7
{[%emt 0:00:45]} 35. cxd4 {[%emt 0:01:46]} Bh5 {[%emt 0:00:24]} 36. Qa3 {
[%emt 0:00:49]} Bxd1 {[%emt 0:00:09]} 37. Rxd1 {[%emt 0:00:15]} c4 {[%emt 0:00:
00]} 38. Bc1 {[%emt 0:00:59]} Nb4 {[%emt 0:01:05]} 39. Bb1 {[%emt 0:00:27]} Qe6
{[%emt 0:00:32]} 40. Qc3 {[%emt 0:00:24]} Rfe8 {[%emt 0:00:33]} 41. h3 {
[%emt 0:31:23]} Qe2 {[%emt 0:31:37]} 42. Rf1 {[%emt 0:00:00]} Nd3 {[%emt 0:00:
00]} 43. Bxd3 {[%emt 0:00:00]} cxd3 {[%emt 0:00:00]} 44. d5 {[%emt 0:00:00]}
Rbc8 {[%emt 0:00:00]} 45. Qd2 {[%emt 0:00:00]} Rc2 {[%emt 0:00:00]} 46. Qd1 {
[%emt 0:00:00]} d2 {[%emt 0:00:00]} 0-1

[Event "44th Chess Olympiad Women 2022"]
[Site "Chennai"]
[Date "2022.07.31"]
[Round "3.27"]
[White "Bobomurodova, Maftuna"]
[Black "Phiri Bertha"]
[Result "1-0"]
[WhiteElo "1914"]
[BlackElo "1606"]
[Annotator "NA"]
[PlyCount "113"]
[EventDate "2022.??.??"]
[TimeControl "60"]

1. e4 {[%emt 0:00:18]} e6 {[%emt 0:00:37]} 2. d4 {[%emt 0:00:13]} d5 {[%emt 0:
00:00]} 3. Nd2 {[%emt 0:00:12]} Nf6 {[%emt 0:01:31]} 4. e5 {[%emt 0:00:10]}
Nfd7 {[%emt 0:00:04]} 5. Bd3 {[%emt 0:00:23]} c5 {[%emt 0:00:39]} 6. c3 {
[%emt 0:00:06]} Nc6 {[%emt 0:01:51]} 7. Ne2 {[%emt 0:00:17]} a6 {[%emt 0:02:08]
} 8. O-O {[%emt 0:03:48]} g6 {[%emt 0:02:49]} 9. Nf3 {[%emt 0:01:40]} Bg7 {
[%emt 0:03:23]} 10. Bg5 {[%emt 0:07:00]} Qc7 {[%emt 0:02:53]} 11. Qd2 {[%emt 0:
00:00]} c4 {[%emt 0:02:43]} 12. Bc2 {[%emt 0:00:39]} h6 {[%emt 0:04:12]} 13.
Be3 {[%emt 0:03:00]} b6 {[%emt 0:03:14]} 14. h4 {[%emt 0:04:40]} Bb7 {[%emt 0:
00:00]} 15. Nf4 {[%emt 0:13:58]} Ne7 {[%emt 0:05:04]} 16. Nh2 {[%emt 0:08:16]}
O-O-O {[%emt 0:06:49]} 17. Qe2 {[%emt 0:07:59]} Rdg8 {[%emt 0:04:01]} 18. h5 {
[%emt 0:05:30]} g5 {[%emt 0:12:16]} 19. Nh3 {[%emt 0:00:08]} Nf5 {[%emt 0:00:
00]} 20. Bd2 {[%emt 0:01:17]} Bf8 {[%emt 0:07:22]} 21. Ng4 {[%emt 0:01:32]} Be7
{[%emt 0:01:43]} 22. Qf3 {[%emt 0:00:54]} f6 {[%emt 0:08:06]} 23. Bxf5 {
[%emt 0:01:01]} exf5 {[%emt 0:00:31]} 24. Qxf5 {[%emt 0:00:03]} fxe5 {[%emt 0:
00:00]} 25. Nxe5 {[%emt 0:00:17]} Rf8 {[%emt 0:01:01]} 26. Qg4 {[%emt 0:00:41]}
Rhg8 {[%emt 0:02:23]} 27. Ng6 {[%emt 0:04:01]} Rf7 {[%emt 0:05:14]} 28. Qe6 {
[%emt 0:00:24]} Rgg7 {[%emt 0:00:03]} 29. f4 {[%emt 0:02:10]} Qc6 {[%emt 0:00:
00]} 30. Qxc6+ {[%emt 0:00:25]} Bxc6 {[%emt 0:00:09]} 31. fxg5 {[%emt 0:00:02]}
hxg5 {[%emt 0:01:06]} 32. Bxg5 {[%emt 0:01:10]} Bd6 {[%emt 0:02:08]} 33. h6 {
[%emt 0:02:12]} Rh7 {[%emt 0:02:31]} 34. Rxf7 {[%emt 0:01:33]} Rxf7 {[%emt 0:
00:00]} 35. Re1 {[%emt 0:00:09]} Nf8 {[%emt 0:01:37]} 36. Nxf8 {[%emt 0:02:23]}
Bxf8 {[%emt 0:00:03]} 37. Bd2 {[%emt 0:02:17]} Rh7 {[%emt 0:01:52]} 38. Re6 {
[%emt 0:00:25]} Kc7 {[%emt 0:01:24]} 39. Nf2 {[%emt 0:01:45]} Bd7 {[%emt 0:00:
00]} 40. Re5 {[%emt 0:00:27]} Bxh6 {[%emt 0:01:15]} 41. Rh5 {[%emt 0:30:06]}
Bxd2 {[%emt 0:31:59]} 42. Rxh7 {[%emt 0:00:02]} Kc6 {[%emt 0:00:09]} 43. Re7 {
[%emt 0:00:54]} Bf5 {[%emt 0:00:59]} 44. g4 {[%emt 0:00:10]} Bb1 {[%emt 0:00:
00]} 45. Re2 {[%emt 0:00:18]} Bf4 {[%emt 0:00:15]} 46. Nh3 {[%emt 0:00:01]} Bd6
{[%emt 0:00:34]} 47. g5 {[%emt 0:00:12]} Kd7 {[%emt 0:00:12]} 48. Kf2 {[%emt 0:
00:00]} Bf5 {[%emt 0:00:11]} 49. Ng1 {[%emt 0:00:44]} Bf4 {[%emt 0:00:47]} 50.
Nf3 {[%emt 0:01:19]} Be4 {[%emt 0:00:36]} 51. Re1 {[%emt 0:00:18]} Ke6 {
[%emt 0:02:08]} 52. Rg1 {[%emt 0:01:20]} Kf7 {[%emt 0:01:28]} 53. Ne5+ {
[%emt 0:00:32]} Kg7 {[%emt 0:00:23]} 54. Nd7 {[%emt 0:00:28]} Bc7 {[%emt 0:00:
00]} 55. Nf6 {[%emt 0:00:06]} Bf4 {[%emt 0:00:00]} 56. Nh5+ {[%emt 0:00:00]}
Kf7 {[%emt 0:00:00]} 57. Nxf4 {[%emt 0:00:00]} 1-0

[Event "44th Chess Olympiad Women 2022"]
[Site "Chennai"]
[Date "2022.07.31"]
[Round "3.27"]
[White "Likando Namakau"]
[Black "Khamdamova, Afruza"]
[Result "0-1"]
[WhiteElo "1544"]
[BlackElo "1969"]
[Annotator "NA RC"]
[PlyCount "76"]
[EventDate "2022.??.??"]
[TimeControl "60"]

1. Nf3 {[%emt 0:00:15]} Nf6 {[%emt 0:00:10]} 2. Nc3 {[%emt 0:02:19]} d5 {
[%emt 0:00:10]} 3. d4 {[%emt 0:01:04]} e6 {[%emt 0:00:54]} 4. e3 {[%emt 0:00:
00]} c5 {[%emt 0:00:16]} 5. Be2 {[%emt 0:01:47]} Nc6 {[%emt 0:00:11]} 6. Bb5 {
[%emt 0:00:42]} Bd6 {[%emt 0:00:36]} 7. b3 {[%emt 0:04:52]} Qa5 {[%emt 0:00:30]
} 8. Bd2 {[%emt 0:02:01]} Qc7 {[%emt 0:00:37]} 9. Na4 {[%emt 0:03:06]} cxd4 {
[%emt 0:01:17]} 10. exd4 {[%emt 0:01:51]} O-O {[%emt 0:01:09]} 11. O-O {
[%emt 0:00:54]} a6 {[%emt 0:01:42]} 12. Bd3 {[%emt 0:02:52]} e5 {[%emt 0:00:50]
} 13. dxe5 {[%emt 0:00:53]} Nxe5 {[%emt 0:00:05]} 14. h3 {[%emt 0:03:06]} Nxd3
{[%emt 0:02:55]} 15. cxd3 {[%emt 0:00:21]} Bf5 {[%emt 0:00:42]} 16. Rc1 {
[%emt 0:01:51]} Qd8 {[%emt 0:00:10]} 17. Bg5 {[%emt 0:01:38]} h6 {[%emt 0:00:
00]} 18. Be3 {[%emt 0:08:50]} Rc8 {[%emt 0:05:03]} 19. Qd2 {[%emt 0:03:35]} Qe7
{[%emt 0:05:17]} 20. Bd4 {[%emt 0:08:19]} Nd7 {[%emt 0:07:27]} 21. Rfe1 {
[%emt 0:02:07]} Be6 {[%emt 0:02:30]} 22. Rxc8 {[%emt 0:02:42]} Rxc8 {[%emt 0:
00:00]} 23. Rc1 {[%emt 0:00:16]} Qd8 {[%emt 0:04:09]} 24. Rxc8 {[%emt 0:01:08]}
Qxc8 {[%emt 0:00:05]} 25. Nb6 {[%emt 0:01:33]} Qc7 {[%emt 0:00:46]} 26. Nxd7 {
[%emt 0:01:09]} Bxd7 {[%emt 0:00:15]} 27. b4 {[%emt 0:04:34]} Bb5 {[%emt 0:00:
00]} 28. Bc3 {[%emt 0:01:32]} Bf4 {[%emt 0:00:47]} 29. Qc2 {[%emt 0:04:46]} Qc8
{[%emt 0:12:18]} 30. Nd4 {[%emt 0:00:36]} Be5 {[%emt 0:00:20]} 31. Ne2 {
[%emt 0:02:10]} d4 {[%emt 0:00:22]} 32. a4 {[%emt 0:02:47]} Bd7 {[%emt 0:00:31]
} 33. f4 {[%emt 0:06:34]} Bf6 {[%emt 0:00:12]} 34. a5 {[%emt 0:07:32]} dxc3 {
[%emt 0:00:07]} 35. g4 {[%emt 0:05:34]} Qc6 {[%emt 0:00:25]} 36. d4 {[%emt 0:
00:00]} Qf3 {[%emt 0:00:21]} 37. Kh2 {[%emt 0:02:16]} Bc6 {[%emt 0:00:07]} 38.
Ng3 {[%emt 0:03:32]} Bh4 {[%emt 0:00:07]} 0-1

[Event "44th Chess Olympiad Women 2022"]
[Site "Chennai"]
[Date "2022.07.31"]
[Round "3.27"]
[White "Mbatha, Constance"]
[Black "Omonova, Umida"]
[Result "0-1"]
[WhiteElo "1614"]
[BlackElo "2195"]
[Annotator "RC"]
[PlyCount "74"]
[EventDate "2022.??.??"]
[TimeControl "60"]

1. e4 {[%emt 0:00:16]} c5 {[%emt 0:00:14]} 2. Nc3 {[%emt 0:00:15]} Nc6 {
[%emt 0:00:12]} 3. Nf3 {[%emt 0:00:05]} g6 {[%emt 0:00:10]} 4. a3 {[%emt 0:00:
00]} Bg7 {[%emt 0:00:58]} 5. Bc4 {[%emt 0:00:31]} e6 {[%emt 0:00:13]} 6. O-O {
[%emt 0:00:20]} Nge7 {[%emt 0:00:30]} 7. d3 {[%emt 0:00:34]} O-O {[%emt 0:00:
00]} 8. Re1 {[%emt 0:01:31]} d5 {[%emt 0:07:04]} 9. Ba2 {[%emt 0:02:50]} d4 {
[%emt 0:01:14]} 10. Ne2 {[%emt 0:01:14]} e5 {[%emt 0:00:50]} 11. Bd2 {[%emt 0:
00:00]} h6 {[%emt 0:00:18]} 12. c3 {[%emt 0:01:33]} dxc3 {[%emt 0:06:14]} 13.
Bxc3 {[%emt 0:00:07]} b6 {[%emt 0:00:52]} 14. Qc2 {[%emt 0:04:48]} Kh7 {
[%emt 0:04:12]} 15. Rad1 {[%emt 0:00:00]} Bg4 {[%emt 0:07:04]} 16. Nd2 {
[%emt 0:00:00]} Bxe2 {[%emt 0:01:07]} 17. Rxe2 {[%emt 0:00:00]} Rc8 {[%emt 0:
00:00]} 18. Nf1 {[%emt 0:03:54]} b5 {[%emt 0:00:50]} 19. Qd2 {[%emt 0:01:47]}
a5 {[%emt 0:00:09]} 20. b4 {[%emt 0:03:50]} axb4 {[%emt 0:06:42]} 21. axb4 {
[%emt 0:00:03]} cxb4 {[%emt 0:00:06]} 22. Bxb4 {[%emt 0:00:29]} Nd4 {[%emt 0:
00:00]} 23. Ne3 {[%emt 0:03:20]} Nxe2+ {[%emt 0:03:14]} 24. Qxe2 {[%emt 0:00:
00]} Nc6 {[%emt 0:06:40]} 25. Bxf8 {[%emt 0:10:13]} Qxf8 {[%emt 0:00:05]} 26.
Qb2 {[%emt 0:01:19]} Nd4 {[%emt 0:00:45]} 27. g3 {[%emt 0:04:07]} f5 {[%emt 0:
00:00]} 28. Bd5 {[%emt 0:04:33]} f4 {[%emt 0:00:17]} 29. Ng2 {[%emt 0:06:35]}
Rc2 {[%emt 0:00:32]} 30. Qb1 {[%emt 0:01:18]} fxg3 {[%emt 0:00:10]} 31. Rf1 {
[%emt 0:01:03]} Rxf2 {[%emt 0:01:25]} 32. Rxf2 {[%emt 0:09:19]} Qxf2+ {[%emt 0:
00:00]} 33. Kh1 {[%emt 0:00:10]} Nf3 {[%emt 0:00:14]} 34. h3 {[%emt 0:02:32]}
b4 {[%emt 0:03:11]} 35. Qd1 {[%emt 0:01:06]} Bf8 {[%emt 0:01:02]} 36. Be6 {
[%emt 0:04:22]} Nh4 {[%emt 0:00:34]} 37. Qg1 {[%emt 0:01:09]} Bc5 {[%emt 0:00:
00]} 0-1

[Event "44th Chess Olympiad Women 2022"]
[Site "Chennai"]
[Date "2022.07.31"]
[Round "3.27"]
[White "Yakubbaeva, Nilufar"]
[Black "Mwango, Lorita"]
[Result "1-0"]
[WhiteElo "2299"]
[BlackElo "1920"]
[Annotator "RC"]
[PlyCount "71"]
[EventDate "2022.??.??"]
[TimeControl "60"]

1. e4 {[%emt 0:00:20]} c6 {[%emt 0:00:23]} 2. d4 {[%emt 0:00:11]} d5 {[%emt 0:
00:00]} 3. Nd2 {[%emt 0:00:18]} dxe4 {[%emt 0:00:36]} 4. Nxe4 {[%emt 0:00:04]}
Bf5 {[%emt 0:00:05]} 5. Ng3 {[%emt 0:00:27]} Bg6 {[%emt 0:00:13]} 6. Nh3 {
[%emt 0:01:05]} e6 {[%emt 0:00:54]} 7. Nf4 {[%emt 0:00:16]} Ne7 {[%emt 0:01:19]
} 8. h4 {[%emt 0:07:24]} h6 {[%emt 0:00:12]} 9. Nxg6 {[%emt 0:01:14]} Nxg6 {
[%emt 0:00:15]} 10. h5 {[%emt 0:00:12]} Ne7 {[%emt 0:00:18]} 11. c4 {[%emt 0:
00:00]} Nd7 {[%emt 0:00:42]} 12. Be2 {[%emt 0:08:02]} Ng8 {[%emt 0:02:45]} 13.
Bf4 {[%emt 0:03:17]} Qa5+ {[%emt 0:02:13]} 14. Kf1 {[%emt 0:00:23]} Ngf6 {
[%emt 0:00:53]} 15. a3 {[%emt 0:05:25]} Be7 {[%emt 0:04:29]} 16. Kg1 {[%emt 0:
00:00]} O-O {[%emt 0:00:49]} 17. Qc2 {[%emt 0:07:34]} b5 {[%emt 0:10:13]} 18.
c5 {[%emt 0:12:17]} Nd5 {[%emt 0:07:44]} 19. Bd2 {[%emt 0:04:09]} Qd8 {[%emt 0:
00:00]} 20. Rd1 {[%emt 0:03:16]} a6 {[%emt 0:06:27]} 21. Rh3 {[%emt 0:06:30]}
Bg5 {[%emt 0:00:28]} 22. Ne4 {[%emt 0:02:16]} Bxd2 {[%emt 0:00:49]} 23. Qxd2 {
[%emt 0:00:15]} f5 {[%emt 0:00:29]} 24. Nd6 {[%emt 0:01:13]} Qg5 {[%emt 0:00:
00]} 25. Bf3 {[%emt 0:07:04]} Qxd2 {[%emt 0:01:33]} 26. Rxd2 {[%emt 0:00:05]}
Rf6 {[%emt 0:00:29]} 27. Bxd5 {[%emt 0:00:25]} exd5 {[%emt 0:00:31]} 28. Re3 {
[%emt 0:00:05]} Raf8 {[%emt 0:03:20]} 29. Re7 {[%emt 0:00:24]} Nb8 {[%emt 0:00:
00]} 30. Rde2 {[%emt 0:00:40]} g6 {[%emt 0:00:20]} 31. Ne8 {[%emt 0:00:56]}
R6f7 {[%emt 0:01:41]} 32. hxg6 {[%emt 0:00:07]} Rxe7 {[%emt 0:00:55]} 33. Rxe7
{[%emt 0:00:06]} Nd7 {[%emt 0:01:20]} 34. g7 {[%emt 0:00:37]} Rf7 {[%emt 0:00:
00]} 35. Rxd7 {[%emt 0:00:09]} Rxd7 {[%emt 0:08:55]} 36. Nf6+ {[%emt 0:00:07]}
1-0

[Event "44th Chess Olympiad Women 2022"]
[Site "Chennai"]
[Date "2022.07.31"]
[Round "3.28"]
[White "Besa, Masaiti"]
[Black "Nilssen, Ellen Fredericia"]
[Result "0-1"]
[WhiteElo "1745"]
[BlackElo "2142"]
[Annotator "NA RC"]
[PlyCount "58"]
[EventDate "2022.??.??"]
[TimeControl "60"]

1. d4 {[%emt 0:00:16]} Nf6 {[%emt 0:00:11]} 2. Bf4 {[%emt 0:00:29]} g6 {
[%emt 0:00:16]} 3. Nf3 {[%emt 0:00:35]} Bg7 {[%emt 0:00:15]} 4. Nc3 {[%emt 0:
00:00]} d5 {[%emt 0:00:18]} 5. h3 {[%emt 0:00:57]} O-O {[%emt 0:00:48]} 6. Qd2
{[%emt 0:03:03]} Ne4 {[%emt 0:00:42]} 7. Nxe4 {[%emt 0:01:57]} dxe4 {[%emt 0:
00:00]} 8. Ne5 {[%emt 0:00:15]} c5 {[%emt 0:00:09]} 9. e3 {[%emt 0:02:03]} Qb6
{[%emt 0:12:51]} 10. c3 {[%emt 0:01:05]} Rd8 {[%emt 0:09:58]} 11. Bc4 {[%emt 0:
00:00]} Be6 {[%emt 0:06:21]} 12. Bxe6 {[%emt 0:01:02]} Qxe6 {[%emt 0:00:23]}
13. Qc2 {[%emt 0:00:39]} g5 {[%emt 0:10:33]} 14. Bg3 {[%emt 0:02:33]} f6 {
[%emt 0:01:21]} 15. Ng4 {[%emt 0:00:34]} Na6 {[%emt 0:03:07]} 16. Nh2 {[%emt 0:
00:00]} cxd4 {[%emt 0:06:03]} 17. exd4 {[%emt 0:01:40]} f5 {[%emt 0:00:08]} 18.
Nf1 {[%emt 0:00:16]} Bxd4 {[%emt 0:04:44]} 19. cxd4 {[%emt 0:17:28]} Nb4 {
[%emt 0:00:43]} 20. Qc3 {[%emt 0:01:41]} Nd3+ {[%emt 0:05:01]} 21. Kd2 {
[%emt 0:05:30]} f4 {[%emt 0:00:48]} 22. Bh2 {[%emt 0:02:48]} Nxf2 {[%emt 0:00:
00]} 23. Rg1 {[%emt 0:02:10]} Rac8 {[%emt 0:01:04]} 24. Qb3 {[%emt 0:02:18]}
Rxd4+ {[%emt 0:01:12]} 25. Ke2 {[%emt 0:01:02]} Qxb3 {[%emt 0:01:22]} 26. axb3
{[%emt 0:00:23]} Rc2+ {[%emt 0:00:08]} 27. Ke1 {[%emt 0:01:33]} Rxb2 {[%emt 0:
00:00]} 28. g3 {[%emt 0:01:17]} f3 {[%emt 0:00:11]} 29. g4 {[%emt 0:01:29]}
Re2# {[%emt 0:00:39]} 0-1